fUSD/lending_fUSD_20251023
["ID","MTS","AMOUNT","RATE_DAILY","PERIOD"]
[392167529,1761227445050,-500.0,0.00043996,120]
[392167530,1761227445059,-965.62,0.00043996,120]
[392167531,1761227445069,-500.0,0.00043996,120]
[392167532,1761227445079,-500.0,0.00043996,120]
[392167533,1761227445089,-500.0,0.00043996,120]
[392167534,1761227445099,-500.0,0.00043996,120]
[392167535,1761227445109,-1349.88,0.00043996,120]
[392167536,1761227445118,-500.0,0.00043996,120]
[392167537,1761227445128,-500.0,0.00043996,120]
[392167538,1761227445138,-500.0,0.00043996,120]
[392167539,1761227445148,-500.0,0.00043996,60]
[392167540,1761227445157,-2217.27,0.00043996,120]
[392167541,1761227445166,-500.0,0.00043996,120]
[392167542,1761227445175,-598.66893048,0.00043997,120]
[392167543,1761227445186,-500.0,0.00043997,120]
[392167544,1761227445196,-500.0,0.00043997,120]
[392167545,1761227445206,-437.33718044,0.00043997,120]
[392167546,1761227445216,-500.0,0.00043997,120]
[392167547,1761227445226,-500.0,0.00043997,120]
[392167548,1761227445237,-500.0,0.00043997,120]
[392167549,1761227445246,-500.0,0.00043997,120]
[392167550,1761227445256,-500.0,0.00043997,120]
[392167551,1761227445266,-500.0,0.00043997,120]
[392167552,1761227445276,-500.0,0.00043997,120]
[392167553,1761227445287,-750.71,0.00043997,120]
[392167554,1761227445296,-500.0,0.00043997,120]
[392167555,1761227445306,-500.0,0.00043997,120]
[392167556,1761227445316,-500.0,0.00043997,120]
[392167557,1761227445326,-500.0,0.00043997,120]
[392167558,1761227445335,-500.0,0.00043997,120]
[392167559,1761227445345,-528.41,0.00043997,120]
[392167560,1761227445355,-500.0,0.00043997,120]
[392167561,1761227445364,-500.0,0.00043997,120]
[392167562,1761227445374,-500.0,0.00043997,120]
[392167564,1761227445383,-500.0,0.00043997,120]
[392167565,1761227445392,-151.0,0.00043997,120]
[392167567,1761227445402,-500.0,0.00043997,120]
[392167569,1761227445411,-500.0,0.00043997,120]
[392167572,1761227445421,-500.0,0.00043997,120]
[392167574,1761227445431,-500.0,0.00043997,120]
[392167576,1761227445441,-414.0,0.00043997,120]
[392167578,1761227445451,-500.0,0.00043997,120]
[392167580,1761227445461,-429.318,0.00043997,120]
[392167582,1761227445472,-500.0,0.00043997,120]
[392167584,1761227445482,-445.202766,0.00043997,120]
[392167586,1761227445491,-500.0,0.00043997,120]
[392167588,1761227445505,-461.67526834,0.00043997,120]
[392167590,1761227445515,-500.0,0.00043997,120]
[392167592,1761227445525,-478.75725327,0.00043997,120]
[392167594,1761227445535,-500.0,0.00043997,120]
[392167596,1761227445545,-496.47127164,0.00043997,120]
[392167598,1761227445555,-500.0,0.00043997,120]
[392167599,1761227445565,-514.84070869,0.00043997,120]
[392167600,1761227445575,-500.0,0.00043997,120]
[392167601,1761227445585,-533.88981491,0.00043997,120]
[392167602,1761227445595,-500.0,0.00043997,120]
[392167603,1761227445606,-553.64373807,0.00043997,120]
[392167604,1761227445615,-574.12855637,0.00043997,120]
[392167605,1761227445624,-500.0,0.00043997,120]
[392167606,1761227445634,-595.37131296,0.00043997,120]
[392167607,1761227445644,-500.0,0.00043997,120]
[392167608,1761227445654,-617.40005154,0.00043997,120]
[392167609,1761227445667,-500.0,0.00043997,120]
[392167610,1761227445677,-640.24385345,0.00043997,120]
[392167611,1761227445686,-500.0,0.00043997,120]
[392167612,1761227445696,-663.93287602,0.00043997,120]
[392167613,1761227445706,-500.0,0.00043997,120]
[392167614,1761227445716,-688.49839244,0.00043997,120]
[392167615,1761227445726,-500.0,0.00043997,120]
[392167616,1761227445736,-713.97283296,0.00043997,120]
[392167617,1761227445745,-500.0,0.00043997,120]
[392167618,1761227445757,-740.38982778,0.00043997,120]
[392167619,1761227445767,-602.96663572,0.00043997,120]
[392167620,1761227445776,-767.7842514,0.00043997,120]
[392167621,1761227445787,-796.19226871,0.00043997,120]
[392167622,1761227445797,-825.65138265,0.00043997,120]
[392167623,1761227445808,-500.0,0.00043998,120]
[392167624,1761227445818,-500.0,0.00043998,120]
[392167625,1761227445829,-500.0,0.00043998,120]
[392167626,1761227445839,-574.39475196,0.00043998,120]
[392167627,1761227445850,-500.0,0.00043998,120]
[392167628,1761227445859,-644.85,0.00043998,120]
[392167629,1761227445870,-500.0,0.00043998,120]
[392167630,1761227445880,-500.0,0.00043998,12]
[392167631,1761227445890,-635.21579961,0.00043998,120]
[392167632,1761227445900,-500.0,0.00043998,120]
[392167633,1761227445910,-500.0,0.00043998,120]
[392167634,1761227445919,-500.0,0.00043998,120]
[392167635,1761227445928,-500.0,0.00043998,120]
[392167636,1761227445938,-500.0,0.00043998,120]
[392167637,1761227445948,-500.0,0.00043998,120]
[392167638,1761227445958,-500.0,0.00043998,120]
[392167639,1761227445969,-500.0,0.00043998,120]
[392167640,1761227445979,-500.0,0.00043998,120]
[392167641,1761227445989,-199.747118,0.00043998,120]
[392167642,1761227445999,-199.747118,0.00043998,120]
[392167643,1761227446011,-199.747118,0.00043998,120]
[392167644,1761227446021,-500.0,0.00043998,120]
[392167645,1761227446031,-199.747118,0.00043998,120]
[392167646,1761227446041,-500.0,0.00043998,120]
[392167647,1761227446052,-375.405863,0.00043998,30]
[392167648,1761227446062,-166.191257,0.00043998,120]
[392167649,1761227446072,-1037.67219,0.00043998,21]
[392167650,1761227446082,-500.0,0.00043999,120]
[392167651,1761227446091,-500.0,0.00043999,30]
[392167652,1761227446101,-500.0,0.00043999,120]
[392167653,1761227446112,-192.90763994,0.00043999,120]
[392167654,1761227446122,-500.0,0.00043999,120]
[392167655,1761227446132,-500.0,0.00043999,120]
[392167656,1761227446142,-500.0,0.00043999,120]
[392167657,1761227446152,-500.0,0.00043999,120]
[392167658,1761227446162,-538.68,0.00043999,120]
[392167659,1761227446173,-512.42,0.00043999,120]
[392167660,1761227446182,-500.0,0.00043999,120]
[392167661,1761227446192,-500.0,0.00043999,2]
[392167662,1761227446201,-500.0,0.00043999,120]
[392167663,1761227446211,-494.90448084,0.00043999,120]
[392167664,1761227446221,-500.0,0.00043999,120]
[392167665,1761227446231,-500.0,0.00043999,120]
[392167666,1761227446240,-530.11,0.00043999,120]
[392167667,1761227446250,-500.0,0.00043999,120]
[392167668,1761227446261,-553.14,0.00043999,120]
[392167669,1761227446270,-500.0,0.00043999,120]
[392167670,1761227446280,-500.0,0.00043999,120]
[392167671,1761227446290,-500.0,0.00043999,120]
[392167672,1761227446301,-500.0,0.00043999,120]
[392167673,1761227446418,-500.0,0.00043999,120]
[392167674,1761227446428,-500.0,0.00043999,120]
[392167675,1761227446438,-151.0,0.00043999,120]
[392167676,1761227446448,-500.0,0.00043999,120]
[392167677,1761227446457,-151.0,0.00043999,120]
[392167678,1761227446467,-500.0,0.00043999,120]
[392167679,1761227446476,-151.0,0.00043999,120]
[392167680,1761227446486,-898.271763,0.00043999,120]
[392167681,1761227446495,-500.0,0.00043999,120]
[392167682,1761227446506,-898.271763,0.00043999,120]
[392167683,1761227446515,-898.271763,0.00043999,120]
[392167684,1761227446525,-898.271763,0.00043999,120]
[392167685,1761227446535,-151.0,0.00043999,120]
[392167686,1761227446544,-152.802054,0.00043999,120]
[392167687,1761227446554,-700.74,0.00043999,120]
[392167688,1761227446563,-500.0,0.00043999,120]
[392167689,1761227446573,-500.0,0.00043999,120]
[392167690,1761227446582,-2100.0,0.00044,30]
[392167691,1761227446591,-2100.0,0.00044,30]
[392167692,1761227446601,-2100.0,0.00044,30]
[392167693,1761227446611,-2100.0,0.00044,30]
[392167694,1761227446620,-2100.0,0.00044,30]
[392167695,1761227446629,-2200.00000485,0.00044,30]
[392167696,1761227446638,-100000.0,0.00044,14]
[392167697,1761227446648,-1500.0,0.00044,30]
[392167698,1761227446661,-1500.0,0.00044,30]
[392167699,1761227446671,-1500.0,0.00044,30]
[392167700,1761227446680,-1500.0,0.00044,30]
[392167701,1761227446689,-1500.0,0.00044,30]
[392167702,1761227446699,-1500.0,0.00044,30]
[392167703,1761227446709,-1500.0,0.00044,30]
[392167704,1761227446718,-200.0,0.00044,120]
[392167705,1761227446727,-199.747118,0.00044,120]
[392167706,1761227446737,-199.747118,0.00044,120]
[392167707,1761227446746,-199.747118,0.00044,120]
[392167708,1761227446758,-199.747118,0.00044,120]
[392167709,1761227446767,-151.0,0.00044,120]
[392167710,1761227446776,-151.0,0.00044,120]
[392167711,1761227446785,-151.0,0.00044,120]
[392167712,1761227446795,-151.0,0.00044,120]
[392167713,1761227446805,-375.405863,0.00044,30]
[392167714,1761227446815,-151.0,0.00044,120]
[392167715,1761227446824,-509.46441382,0.00044003,10]
[392167716,1761227446834,-500.0,0.00044003,2]
[392167717,1761227446843,-500.0,0.00044003,10]
[392167718,1761227446852,-500.0,0.00044003,10]
[392167719,1761227446861,-500.0,0.00044003,10]
[392167720,1761227446871,-500.0,0.00044003,10]
[392167721,1761227446881,-3691.35641645,0.00044057,15]
[392167722,1761227446891,-211.069969,0.00044074,120]
[392167723,1761227446900,-158.606016,0.00044074,120]
[392167724,1761227446910,-151.0,0.00044074,120]
[392167725,1761227446922,-898.271763,0.00044074,120]
[392167726,1761227446932,-898.271763,0.00044074,120]
[392167727,1761227446942,-898.271763,0.00044074,120]
[392167728,1761227446952,-898.271763,0.00044074,120]
[392167729,1761227446962,-800.0,0.000441,16]
[392167730,1761227446972,-1000.0,0.00044101,10]
[392167731,1761227446982,-4133.32607523,0.00044103,120]
[392167732,1761227446991,-352.23,0.00044109,30]
[392167733,1761227447001,-150.0,0.00044137,14]
[392167734,1761227447014,-500.0,0.00044144,120]
[392167735,1761227447024,-500.0,0.00044144,120]
[392167736,1761227447034,-504.21,0.00044144,120]
[392167737,1761227447044,-500.0,0.00044144,120]
[392167738,1761227447053,-500.0,0.00044144,120]
[392167739,1761227447063,-500.0,0.00044144,120]
[392167740,1761227447072,-500.0,0.00044144,120]
[392167741,1761227447081,-500.0,0.00044144,120]
[392167742,1761227447090,-500.0,0.00044144,120]
[392167743,1761227447100,-500.0,0.00044144,120]
[392167744,1761227447109,-500.0,0.00044144,120]
[392167745,1761227447119,-500.0,0.00044144,120]
[392167746,1761227447129,-500.0,0.00044144,120]
[392167747,1761227447138,-500.0,0.00044144,120]
[392167748,1761227447147,-500.0,0.00044144,120]
[392167749,1761227447158,-500.0,0.00044144,120]
[392167750,1761227447167,-500.0,0.00044144,120]
[392167751,1761227447177,-500.0,0.00044144,120]
[392167752,1761227447188,-500.0,0.00044144,120]
[392167753,1761227447198,-500.0,0.00044144,120]
[392167754,1761227447207,-500.0,0.00044144,120]
[392167755,1761227447216,-500.0,0.00044144,120]
[392167756,1761227447226,-500.0,0.00044144,120]
[392167757,1761227447235,-500.0,0.00044144,120]
[392167758,1761227447246,-500.0,0.00044144,120]
[392167759,1761227447257,-500.0,0.00044144,120]
[392167760,1761227447267,-500.0,0.00044144,120]
[392167761,1761227447276,-500.0,0.00044144,120]
[392167762,1761227447286,-500.0,0.00044144,120]
[392167763,1761227447294,-500.0,0.00044144,120]
[392167764,1761227447304,-500.0,0.00044144,120]
[392167765,1761227447314,-500.0,0.00044144,120]
[392167766,1761227447323,-500.0,0.00044144,120]
[392167767,1761227447333,-500.0,0.00044144,120]
[392167768,1761227447342,-500.0,0.00044144,120]
[392167769,1761227447352,-481.37,0.00044144,120]
[392167770,1761227447362,-538.42,0.00044144,120]
[392167771,1761227447372,-2838.0,0.00044171,7]
[392167772,1761227447382,-3691.35641645,0.00044197,15]
[392167773,1761227447391,-1200.0,0.000442,16]
[392167774,1761227447401,-201.33,0.000442,14]
[392167775,1761227447410,-500.0,0.00044225,120]
[392167776,1761227447419,-500.0,0.00044225,120]
[392167777,1761227447429,-500.0,0.00044225,120]
[392167778,1761227447439,-500.0,0.00044225,120]
[392167779,1761227447449,-500.0,0.00044225,120]
[392167780,1761227447458,-500.0,0.00044225,120]
[392167781,1761227447468,-500.0,0.00044225,120]
[392167782,1761227447477,-500.0,0.00044225,120]
[392167783,1761227447487,-500.0,0.00044225,120]
[392167784,1761227447496,-750.71,0.00044225,120]
[392167785,1761227447507,-500.0,0.00044225,120]
[392167786,1761227447517,-500.0,0.00044225,120]
[392167787,1761227447526,-500.0,0.00044225,120]
[392167788,1761227447537,-500.0,0.00044225,120]
[392167789,1761227447546,-500.0,0.00044225,120]
[392167790,1761227447555,-528.41,0.00044225,120]
[392167791,1761227447566,-500.0,0.00044225,120]
[392167792,1761227447576,-500.0,0.00044225,120]
[392167793,1761227447585,-500.0,0.00044225,120]
[392167794,1761227447595,-500.0,0.00044225,120]
[392167795,1761227447604,-500.0,0.00044256,120]
[392167796,1761227447613,-435.34703587,0.00044256,120]
[392167797,1761227447623,-500.0,0.00044256,120]
[392167798,1761227447632,-2151.23,0.00044256,120]
[392167799,1761227447642,-500.0,0.00044256,120]
[392167800,1761227447651,-500.0,0.00044256,120]
[392167801,1761227447666,-1319.05,0.00044256,120]
[392167802,1761227447676,-155.50530928,0.00044256,120]
[392167803,1761227447685,-500.0,0.00044256,120]
[392167804,1761227447694,-313.99483412,0.00044256,120]
[392167805,1761227447704,-500.0,0.00044256,120]
[392167806,1761227447713,-1469.62,0.00044256,30]
[392167807,1761227447723,-500.0,0.00044256,120]
[392167808,1761227447733,-965.62,0.00044256,120]
[392167809,1761227447743,-500.0,0.00044256,120]
[392167810,1761227447753,-500.0,0.00044256,120]
[392167811,1761227447762,-500.0,0.00044256,120]
[392167812,1761227447772,-385.49208894,0.00044256,120]
[392167813,1761227447782,-1349.88,0.00044256,120]
[392167814,1761227447793,-500.0,0.00044256,120]
[392167815,1761227447802,-500.0,0.00044256,120]
[392167816,1761227447813,-500.0,0.00044256,60]
[392167817,1761227447823,-500.0,0.00044256,120]
[392167818,1761227447833,-2217.27,0.00044256,120]
[392167819,1761227447843,-1600.0,0.000443,16]
[392167820,1761227447853,-700.0,0.00044328,30]
[392167821,1761227447862,-3691.35641645,0.00044338,15]
[392167822,1761227447872,-1037.6722,0.0004434,22]
[392167823,1761227447881,-201.30743459,0.00044341,14]
[392167824,1761227447890,-500.0,0.00044356,30]
[392167825,1761227447900,-931.48054198,0.00044366,30]
[392167826,1761227447910,-352.23,0.00044383,30]
[392167827,1761227447919,-2000.0,0.000444,16]
[392167828,1761227447928,-500.0,0.00044417,30]
[392167829,1761227447937,-500.0,0.00044434,120]
[392167830,1761227447947,-500.0,0.00044434,120]
[392167831,1761227447957,-500.0,0.00044435,120]
[392167832,1761227447966,-500.0,0.00044435,120]
[392167833,1761227447975,-500.0,0.00044435,120]
[392167834,1761227447985,-500.0,0.00044435,120]
[392167835,1761227447994,-644.85,0.00044435,120]
[392167836,1761227448008,-500.0,0.00044435,120]
[392167837,1761227448017,-500.0,0.00044435,12]
[392167838,1761227448027,-500.0,0.00044435,120]
[392167839,1761227448036,-500.0,0.00044435,120]
[392167840,1761227448046,-500.0,0.00044435,120]
[392167841,1761227448055,-500.0,0.00044435,120]
[392167842,1761227448065,-500.0,0.00044435,120]
[392167843,1761227448074,-500.0,0.00044435,120]
[392167844,1761227448083,-500.0,0.00044435,120]
[392167845,1761227448093,-500.0,0.00044435,120]
[392167846,1761227448102,-500.0,0.00044435,120]
[392167847,1761227448112,-500.0,0.00044435,120]
[392167848,1761227448122,-500.0,0.00044435,120]
[392167849,1761227448132,-194.64785777,0.00044452,14]
[392167850,1761227448142,-3691.35641645,0.00044478,15]
[392167851,1761227448153,-150.0,0.000445,14]
[392167852,1761227448162,-400.0,0.000445,16]
[392167853,1761227448172,-500.0,0.00044551,2]
[392167854,1761227448181,-1000.0,0.00044551,10]
[392167855,1761227448191,-1000.0,0.00044551,10]
[392167856,1761227448200,-201.33,0.00044565,14]
[392167857,1761227448210,-762.71508512,0.00044565,30]
[392167858,1761227448219,-176.722615,0.00044581,28]
[392167859,1761227448229,-610.13076498,0.000446,16]
[392167860,1761227448239,-960.0,0.000446,30]
[392167861,1761227448249,-400.0,0.000446,16]
[392167862,1761227448259,-301.0,0.000446,30]
[392167863,1761227448270,-15028.7698018,0.000446,120]
[392167864,1761227448279,-837.0,0.000446,30]
[392167865,1761227448289,-443.0,0.000446,30]
[392167866,1761227448299,-3691.35641645,0.00044619,15]
[392167867,1761227448309,-542.42001522,0.00044649,10]
[392167868,1761227448318,-610.13076494,0.00044655,16]
[392167869,1761227448327,-352.23,0.00044657,30]
[392167870,1761227448337,-500.0,0.00044657,120]
[392167871,1761227448346,-500.0,0.00044657,120]
[392167872,1761227448356,-500.0,0.00044657,120]
[392167873,1761227448365,-4187.36301461,0.000447,2]
[392167874,1761227448374,-199.747118,0.000447,120]
[392167875,1761227448384,-199.747118,0.000447,120]
[392167876,1761227448393,-199.747118,0.000447,120]
[392167877,1761227448403,-199.747118,0.000447,120]
[392167878,1761227448413,-151.0,0.000447,120]
[392167879,1761227448422,-400.0,0.000447,16]
[392167880,1761227448432,-610.13076494,0.0004471,16]
[392167881,1761227448442,-1425.0,0.00044717,2]
[392167882,1761227448452,-176.722615,0.00044751,28]
[392167883,1761227448462,-375.405863,0.00044759,30]
[392167884,1761227448472,-3691.35641645,0.00044759,15]
[392167885,1761227448482,-610.13076494,0.00044765,17]
[392167886,1761227448493,-1000.0,0.00044794,14]
[392167887,1761227448502,-1000.0,0.000448,7]
[392167888,1761227448511,-400.0,0.000448,16]
[392167889,1761227448522,-610.13076494,0.0004482,17]
[392167890,1761227448533,-1037.6722,0.0004484,25]
[392167891,1761227448543,-199.18575029,0.0004487,20]
[392167892,1761227448552,-610.13076494,0.00044875,17]
[392167893,1761227448562,-1000.0,0.00044877,14]
[392167894,1761227448571,-5050.0,0.0004488,37]
[392167895,1761227448581,-737.915,0.00044897,2]
[392167896,1761227448590,-572.0,0.00044897,2]
[392167897,1761227448600,-1590.0,0.00044897,2]
[392167898,1761227448609,-1267.0,0.00044897,2]
[392167899,1761227448619,-6537.0,0.00044897,2]
[392167900,1761227448628,-757.471,0.00044897,2]
[392167901,1761227448637,-3486.0,0.00044897,2]
[392167902,1761227448646,-663.273,0.00044897,2]
[392167903,1761227448656,-500.0,0.00044897,120]
[392167904,1761227448671,-500.0,0.00044897,120]
[392167905,1761227448680,-500.0,0.00044897,120]
[392167906,1761227448690,-500.0,0.00044897,120]
[392167907,1761227448699,-151.0,0.00044897,120]
[392167908,1761227448710,-898.271763,0.00044897,120]
[392167909,1761227448720,-500.0,0.00044897,120]
[392167910,1761227448730,-898.271763,0.00044897,120]
[392167911,1761227448741,-898.271763,0.00044897,120]
[392167912,1761227448750,-898.271763,0.00044897,120]
[392167913,1761227448760,-500.0,0.00044897,120]
[392167914,1761227448769,-500.0,0.00044898,120]
[392167915,1761227448779,-500.0,0.00044898,120]
[392167916,1761227448789,-500.0,0.00044898,120]
[392167917,1761227448798,-500.0,0.00044898,120]
[392167918,1761227448808,-500.0,0.00044898,120]
[392167919,1761227448817,-500.0,0.00044898,120]
[392167920,1761227448826,-500.0,0.00044898,120]
[392167921,1761227448835,-500.0,0.00044898,120]
[392167922,1761227448845,-500.0,0.00044898,120]
[392167923,1761227448855,-750.71,0.00044898,120]
[392167924,1761227448863,-500.0,0.00044898,120]
[392167925,1761227448873,-500.0,0.00044898,120]
[392167926,1761227448883,-500.0,0.00044898,120]
[392167927,1761227448892,-500.0,0.00044898,120]
[392167928,1761227448901,-500.0,0.00044898,120]
[392167929,1761227448911,-528.41,0.00044898,120]
[392167930,1761227448920,-500.0,0.00044898,120]
[392167931,1761227448929,-500.0,0.00044898,30]
[392167932,1761227448939,-500.0,0.00044898,120]
[392167933,1761227448949,-500.0,0.00044898,120]
[392167934,1761227448958,-500.0,0.00044898,120]
[392167935,1761227448967,-500.0,0.00044898,120]
[392167936,1761227448977,-500.0,0.00044898,120]
[392167937,1761227448986,-500.0,0.00044898,120]
[392167938,1761227448995,-500.0,0.00044898,120]
[392167939,1761227449005,-500.0,0.00044898,120]
[392167940,1761227449015,-500.0,0.00044898,120]
[392167941,1761227449024,-500.0,0.00044898,120]
[392167942,1761227449033,-538.68,0.00044898,120]
[392167943,1761227449043,-512.42,0.00044898,120]
[392167944,1761227449052,-1000.0,0.00044898,14]
[392167945,1761227449062,-500.0,0.00044898,120]
[392167946,1761227449071,-500.0,0.00044898,2]
[392167947,1761227449081,-500.0,0.00044898,120]
[392167948,1761227449090,-500.0,0.00044898,120]
[392167949,1761227449099,-500.0,0.00044898,120]
[392167950,1761227449209,-530.11,0.00044898,120]
[392167951,1761227449219,-500.0,0.00044898,120]
[392167952,1761227449229,-553.14,0.00044898,120]
[392167953,1761227449238,-500.0,0.00044898,120]
[392167954,1761227449248,-500.0,0.00044898,120]
[392167955,1761227449258,-500.0,0.00044898,120]
[392167956,1761227449268,-500.0,0.00044898,120]
[392167957,1761227449278,-700.74,0.00044898,120]
[392167958,1761227449289,-500.0,0.00044898,120]
[392167959,1761227449299,-320.0,0.00044899,120]
[392167960,1761227449308,-500.0,0.00044899,120]
[392167961,1761227449319,-500.0,0.00044899,120]
[392167962,1761227449329,-500.0,0.00044899,120]
[392167963,1761227449338,-500.0,0.00044899,120]
[392167964,1761227449349,-644.85,0.00044899,120]
[392167965,1761227449359,-500.0,0.00044899,120]
[392167966,1761227449368,-500.0,0.00044899,12]
[392167967,1761227449377,-331.30744507,0.00044899,120]
[392167968,1761227449387,-500.0,0.00044899,120]
[392167969,1761227449396,-500.0,0.00044899,120]
[392167970,1761227449406,-500.0,0.00044899,120]
[392167971,1761227449416,-500.0,0.00044899,120]
[392167972,1761227449427,-500.0,0.00044899,120]
[392167973,1761227449436,-500.0,0.00044899,120]
[392167974,1761227449444,-500.0,0.00044899,120]
[392167975,1761227449454,-500.0,0.00044899,120]
[392167976,1761227449464,-500.0,0.00044899,120]
[392167977,1761227449473,-500.0,0.00044899,120]
[392167978,1761227449482,-999.0,0.00044899,120]
[392167979,1761227449492,-500.0,0.00044899,120]
[392167980,1761227449502,-2151.23,0.00044899,120]
[392167981,1761227449512,-500.0,0.00044899,120]
[392167982,1761227449522,-500.0,0.00044899,120]
[392167983,1761227449531,-1319.05,0.00044899,120]
[392167984,1761227449542,-500.0,0.00044899,120]
[392167985,1761227449551,-500.0,0.00044899,120]
[392167986,1761227449561,-1469.62,0.00044899,30]
[392167987,1761227449571,-500.0,0.00044899,120]
[392167988,1761227449582,-500.0,0.00044899,120]
[392167989,1761227449592,-965.62,0.00044899,120]
[392167990,1761227449601,-500.0,0.00044899,120]
[392167991,1761227449611,-500.0,0.00044899,120]
[392167992,1761227449621,-500.0,0.00044899,120]
[392167993,1761227449631,-1349.88,0.00044899,120]
[392167994,1761227449641,-489.8717187,0.00044899,120]
[392167995,1761227449651,-398.16213737,0.00044899,120]
[392167996,1761227449664,-500.0,0.00044899,120]
[392167997,1761227449673,-500.0,0.00044899,60]
[392167998,1761227449682,-500.0,0.00044899,120]
[392167999,1761227449692,-2217.27,0.00044899,120]
[392168000,1761227449701,-142387.51,0.000449,14]
[392168001,1761227449711,-155.47681905,0.000449,120]
[392168002,1761227449720,-155.47681905,0.000449,120]
[392168003,1761227449730,-155.47,0.000449,120]
[392168004,1761227449740,-155.47681905,0.000449,120]
[392168005,1761227449749,-155.47681905,0.000449,120]
[392168006,1761227449759,-155.47681905,0.000449,120]
[392168007,1761227449769,-155.47681905,0.000449,120]
[392168008,1761227449778,-155.47681905,0.000449,120]
[392168009,1761227449787,-155.47681905,0.000449,120]
[392168010,1761227449797,-179.0441645,0.000449,120]
[392168011,1761227449806,-320.0,0.000449,120]
[392168012,1761227449815,-199.747118,0.000449,120]
[392168013,1761227449826,-199.747118,0.000449,120]
[392168014,1761227449836,-199.747118,0.000449,120]
[392168015,1761227449845,-199.747121,0.000449,120]
[392168016,1761227449855,-296.695275,0.000449,120]
[392168017,1761227449864,-3691.35641645,0.000449,15]
[392168018,1761227449874,-1000.0,0.000449,7]
[392168019,1761227449884,-477.0,0.000449,16]
[392168020,1761227449895,-375.405863,0.000449,30]
[392168021,1761227449905,-1823.51989226,0.000449,120]
[392168022,1761227449915,-197.79612584,0.000449,120]
[392168023,1761227449926,-151.0,0.000449,120]
[392168024,1761227449935,-898.271763,0.000449,120]
[392168025,1761227449945,-898.271763,0.000449,120]
[392168026,1761227449955,-898.271763,0.000449,120]
[392168027,1761227449965,-898.271769,0.000449,120]
[392168028,1761227449974,-1926.39222287,0.000449,2]
[392168029,1761227449983,-6820.85967858,0.000449,2]
[392168030,1761227449993,-447.80331944,0.000449,2]
[392168031,1761227450003,-1823.51989224,0.0004491,120]
[392168032,1761227450013,-176.722615,0.0004492,28]
[392168033,1761227450023,-1823.51989224,0.0004492,120]
[392168034,1761227450032,-610.13076494,0.0004493,17]
[392168035,1761227450043,-352.26,0.00044931,30]
[392168036,1761227450053,-1926.39222285,0.00044935,2]
[392168037,1761227450062,-1000.0,0.00044947,14]
[392168038,1761227450071,-201.33,0.0004495,14]
[392168039,1761227450081,-869.08733755,0.00044956,120]
[392168040,1761227450090,-869.08733755,0.00044957,120]
[392168041,1761227450100,-29153.77002744,0.00044957,120]
[392168042,1761227450110,-500.0,0.00044958,120]
[392168043,1761227450119,-500.0,0.00044958,120]
[392168044,1761227450128,-500.0,0.00044958,120]
[392168045,1761227450138,-500.0,0.00044958,120]
[392168046,1761227450148,-500.0,0.00044958,120]